[Event "Titled Tuesday Blitz February 07 Early 2023"]
[White "Ladan, Nicholas"]
[Black "Vakhlamov, Igor L."]
[WhiteFideId "30918855"]
[BlackFideId "24126748"]
[WhiteElo "2228"]
[BlackElo "2413"]
[Result "1-0"]
[Round "02"]
[TimeControl "180+2"]
[Date "2023.02.07"]
[WhiteClock "0:00:06"]
[BlackClock "0:00:07"]

1. d4 {[%clk 0:03:00]}  d5 {[%clk 0:02:55]} 2. Bf4 {[%clk 0:03:01]}  Nf6 {[%clk 0:02:55]} 3. e3 {[%clk 0:03:00]}  Bf5 {[%clk 0:02:56]} 4. c4 {[%clk 0:02:59]}  e6 {[%clk 0:02:56]} 5. Nc3 {[%clk 0:03:00]}  Bb4 {[%clk 0:02:55]} 6. Qa4+ {[%clk 0:02:54]}  Nc6 {[%clk 0:02:55]} 7. Rc1 {[%clk 0:02:54]}  O-O {[%clk 0:02:55]} 8. Nf3 {[%clk 0:02:46]}  Ne4 {[%clk 0:02:50]} 9. Ne5 {[%clk 0:02:45]}  Bxc3+ {[%clk 0:02:38]} 10. bxc3 {[%clk 0:02:43]}  Nxe5 {[%clk 0:02:37]} 11. Bxe5 {[%clk 0:02:41]}  Qh4 {[%clk 0:02:10]} 12. g3 {[%clk 0:02:30]}  Qe7 {[%clk 0:02:10]} 13. Qb4 {[%clk 0:02:18]}  c5 {[%clk 0:01:55]} 14. Qa3 {[%clk 0:02:08]}  f6 {[%clk 0:01:51]} 15. Bf4 {[%clk 0:02:02]}  g5 {[%clk 0:01:51]} 16. g4 {[%clk 0:02:00]}  Bxg4 {[%clk 0:01:45]} 17. Rg1 {[%clk 0:01:54]}  Bf3 {[%clk 0:01:34]} 18. h4 {[%clk 0:01:52]}  h6 {[%clk 0:01:21]} 19. cxd5 {[%clk 0:01:25]}  exd5 {[%clk 0:01:21]} 20. c4 {[%clk 0:00:49]}  Kh8 {[%clk 0:00:45]} 21. hxg5 {[%clk 0:00:42]}  hxg5 {[%clk 0:00:46]} 22. Bg3 {[%clk 0:00:29]}  Rfe8 {[%clk 0:00:33]} 23. cxd5 {[%clk 0:00:29]}  cxd4 {[%clk 0:00:34]} 24. Qxe7 {[%clk 0:00:28]}  Rxe7 {[%clk 0:00:35]} 25. d6 {[%clk 0:00:28]}  Ree8 {[%clk 0:00:31]} 26. Bb5 {[%clk 0:00:27]}  Red8 {[%clk 0:00:24]} 27. d7 {[%clk 0:00:15]}  dxe3 {[%clk 0:00:22]} 28. fxe3 {[%clk 0:00:15]}  Nxg3 {[%clk 0:00:22]} 29. Rxg3 {[%clk 0:00:14]}  Bd5 {[%clk 0:00:18]} 30. Rd1 {[%clk 0:00:14]}  Bc6 {[%clk 0:00:16]} 31. Bxc6 {[%clk 0:00:13]}  bxc6 {[%clk 0:00:17]} 32. Rd6 {[%clk 0:00:14]}  Kg7 {[%clk 0:00:17]} 33. Rf3 {[%clk 0:00:14]}  Rf8 {[%clk 0:00:15]} 34. Rxc6 {[%clk 0:00:14]}  Rad8 {[%clk 0:00:15]} 35. Rc7 {[%clk 0:00:15]}  Rf7 {[%clk 0:00:16]} 36. Rxa7 {[%clk 0:00:14]}  Rdxd7 {[%clk 0:00:16]} 37. Ra6 {[%clk 0:00:13]}  Rb7 {[%clk 0:00:16]} 38. Rf5 {[%clk 0:00:13]}  Rb2 {[%clk 0:00:16]} 39. Rf2 {[%clk 0:00:09]}  Rxf2 {[%clk 0:00:13]} 40. Kxf2 {[%clk 0:00:10]}  Kg6 {[%clk 0:00:14]} 41. Kf3 {[%clk 0:00:10]}  Kh5 {[%clk 0:00:13]} 42. Ra8 {[%clk 0:00:10]}  f5 {[%clk 0:00:13]} 43. a4 {[%clk 0:00:10]}  Rb7 {[%clk 0:00:10]} 44. a5 {[%clk 0:00:10]}  Rb4 {[%clk 0:00:09]} 45. a6 {[%clk 0:00:09]}  g4+ {[%clk 0:00:05]} 46. Kg3 {[%clk 0:00:08]}  f4+ {[%clk 0:00:05]} 47. exf4 {[%clk 0:00:08]}  Rb3+ {[%clk 0:00:06]} 48. Kg2 {[%clk 0:00:08]}  Kh4 {[%clk 0:00:07]} 49. Rh8# {[%clk 0:00:06]} 1-0


[Site "https://www.chess.com"]

[Event "Titled Tuesday Blitz February 07 Early 2023"]
[White "Richter, Paul"]
[Black "Pakleza, Zbigniew"]
[WhiteFideId "2046350"]
[BlackFideId "1119290"]
[WhiteElo "2171"]
[BlackElo "2494"]
[Result "0-1"]
[Round "02"]
[TimeControl "180+2"]
[Date "2023.02.07"]
[WhiteClock "0:00:02"]
[BlackClock "0:00:15"]

1. e4 {[%clk 0:03:00]}  d6 {[%clk 0:03:00]} 2. d4 {[%clk 0:03:00]}  Nf6 {[%clk 0:03:00]} 3. Nc3 {[%clk 0:03:00]}  c6 {[%clk 0:03:01]} 4. f4 {[%clk 0:03:00]}  Qb6 {[%clk 0:03:01]} 5. e5 {[%clk 0:02:58]}  Nd5 {[%clk 0:03:01]} 6. Nxd5 {[%clk 0:02:57]}  cxd5 {[%clk 0:03:02]} 7. c3 {[%clk 0:02:57]}  Bf5 {[%clk 0:03:02]} 8. Nf3 {[%clk 0:02:56]}  e6 {[%clk 0:03:02]} 9. Be2 {[%clk 0:02:35]}  Nc6 {[%clk 0:03:02]} 10. O-O {[%clk 0:02:34]}  Be7 {[%clk 0:03:01]} 11. Kh1 {[%clk 0:02:33]}  h6 {[%clk 0:03:00]} 12. Bd3 {[%clk 0:02:15]}  g6 {[%clk 0:03:00]} 13. Be2 {[%clk 0:02:08]}  O-O-O {[%clk 0:02:55]} 14. b4 {[%clk 0:02:01]}  Kb8 {[%clk 0:02:51]} 15. a4 {[%clk 0:01:58]}  Rc8 {[%clk 0:02:50]} 16. Bd2 {[%clk 0:01:43]}  Qc7 {[%clk 0:02:44]} 17. a5 {[%clk 0:01:39]}  g5 {[%clk 0:02:38]} 18. Qa4 {[%clk 0:01:25]}  Nd8 {[%clk 0:02:06]} 19. b5 {[%clk 0:01:17]}  Qd7 {[%clk 0:02:05]} 20. Qb3 {[%clk 0:01:02]}  g4 {[%clk 0:01:41]} 21. Ne1 {[%clk 0:00:57]}  f6 {[%clk 0:01:40]} 22. Nd3 {[%clk 0:00:49]}  Nf7 {[%clk 0:01:37]} 23. exf6 {[%clk 0:00:43]}  Bxf6 {[%clk 0:01:37]} 24. Nb4 {[%clk 0:00:43]}  h5 {[%clk 0:01:30]} 25. b6 {[%clk 0:00:37]}  a6 {[%clk 0:01:13]} 26. Nxa6+ {[%clk 0:00:36]}  bxa6 {[%clk 0:01:12]} 27. Bxa6 {[%clk 0:00:37]}  h4 {[%clk 0:00:57]} 28. Bxc8 {[%clk 0:00:35]}  Qxc8 {[%clk 0:00:51]} 29. a6 {[%clk 0:00:35]}  Qc4 {[%clk 0:00:50]} 30. Qa3 {[%clk 0:00:19]}  Ka8 {[%clk 0:00:20]} 31. Rfe1 {[%clk 0:00:11]}  h3 {[%clk 0:00:17]} 32. g3 {[%clk 0:00:11]}  Qd3 {[%clk 0:00:16]} 33. b7+ {[%clk 0:00:03]}  Ka7 {[%clk 0:00:17]} 34. Be3 {[%clk 0:00:02]}  Qe4+ {[%clk 0:00:15]} 0-1


[Site "https://www.chess.com"]

[Event "Titled Tuesday Blitz February 07 Early 2023"]
[White "Postny, Evgeny"]
[Black "Liang, Justin"]
[WhiteFideId "2804344"]
[BlackFideId "2099942"]
[WhiteElo "2549"]
[BlackElo "2052"]
[Result "1-0"]
[Round "02"]
[TimeControl "180+2"]
[Date "2023.02.07"]
[WhiteClock "0:00:05"]
[BlackClock "0:00:10"]

1. e4 {[%clk 0:03:00]}  c5 {[%clk 0:02:57]} 2. Nf3 {[%clk 0:03:00]}  e6 {[%clk 0:02:53]} 3. d4 {[%clk 0:03:00]}  cxd4 {[%clk 0:02:54]} 4. Nxd4 {[%clk 0:03:01]}  a6 {[%clk 0:02:54]} 5. Bd3 {[%clk 0:02:59]}  Qc7 {[%clk 0:02:54]} 6. O-O {[%clk 0:02:58]}  Nf6 {[%clk 0:02:51]} 7. c4 {[%clk 0:02:57]}  d6 {[%clk 0:02:51]} 8. Nc3 {[%clk 0:02:56]}  Nbd7 {[%clk 0:02:51]} 9. b3 {[%clk 0:02:55]}  Be7 {[%clk 0:02:51]} 10. Bb2 {[%clk 0:02:55]}  b6 {[%clk 0:02:51]} 11. Qe2 {[%clk 0:02:47]}  Bb7 {[%clk 0:02:50]} 12. a4 {[%clk 0:02:43]}  O-O {[%clk 0:02:43]} 13. Kh1 {[%clk 0:02:39]}  Rac8 {[%clk 0:02:42]} 14. Rfc1 {[%clk 0:02:37]}  Qb8 {[%clk 0:02:42]} 15. f3 {[%clk 0:02:33]}  Rfe8 {[%clk 0:02:38]} 16. a5 {[%clk 0:02:30]}  bxa5 {[%clk 0:02:37]} 17. Rxa5 {[%clk 0:02:28]}  Ne5 {[%clk 0:02:31]} 18. Ra2 {[%clk 0:02:11]}  Bd8 {[%clk 0:02:13]} 19. Na4 {[%clk 0:02:07]}  h5 {[%clk 0:01:53]} 20. Bb1 {[%clk 0:01:54]}  h4 {[%clk 0:01:40]} 21. c5 {[%clk 0:01:48]}  dxc5 {[%clk 0:01:12]} 22. Nxc5 {[%clk 0:01:47]}  Bb6 {[%clk 0:01:12]} 23. b4 {[%clk 0:01:36]}  a5 {[%clk 0:01:08]} 24. Qb5 {[%clk 0:01:27]}  Ba8 {[%clk 0:00:17]} 25. Ndxe6 {[%clk 0:01:06]}  Neg4 {[%clk 0:00:13]} 26. fxg4 {[%clk 0:00:38]}  Nxg4 {[%clk 0:00:14]} 27. e5 {[%clk 0:00:33]}  fxe6 {[%clk 0:00:07]} 28. Bd4 {[%clk 0:00:16]}  axb4 {[%clk 0:00:05]} 29. Qd3 {[%clk 0:00:15]}  Bxc5 {[%clk 0:00:04]} 30. Qh7+ {[%clk 0:00:15]}  Kf8 {[%clk 0:00:03]} 31. Qh8+ {[%clk 0:00:10]}  Kf7 {[%clk 0:00:04]} 32. Rf1+ {[%clk 0:00:09]}  Nf6 {[%clk 0:00:02]} 33. Rxf6+ {[%clk 0:00:07]}  Ke7 {[%clk 0:00:03]} 34. Qxg7+ {[%clk 0:00:07]}  Kd8 {[%clk 0:00:04]} 35. Rd2 {[%clk 0:00:05]}  Bxd4 {[%clk 0:00:03]} 36. Rxd4+ {[%clk 0:00:06]}  Bd5 {[%clk 0:00:04]} 37. Rf1 {[%clk 0:00:04]}  Qb6 {[%clk 0:00:02]} 38. Qg5+ {[%clk 0:00:02]}  Kd7 {[%clk 0:00:02]} 39. Qd2 {[%clk 0:00:03]}  Rc3 {[%clk 0:00:01]} 40. Bg6 {[%clk 0:00:02]}  Kc6 {[%clk 0:00:01]} 41. Bxe8+ {[%clk 0:00:02]}  Kb7 {[%clk 0:00:02]} 42. Rxd5 {[%clk 0:00:02]}  exd5 {[%clk 0:00:02]} 43. Qxd5+ {[%clk 0:00:03]}  Kb8 {[%clk 0:00:02]} 44. Qd6+ {[%clk 0:00:02]}  Qxd6 {[%clk 0:00:03]} 45. exd6 {[%clk 0:00:03]}  Rd3 {[%clk 0:00:01]} 46. d7 {[%clk 0:00:03]}  b3 {[%clk 0:00:02]} 47. h3 {[%clk 0:00:02]}  b2 {[%clk 0:00:03]} 48. Bg6 {[%clk 0:00:02]}  Rxd7 {[%clk 0:00:01]} 49. Rb1 {[%clk 0:00:02]}  Rd2 {[%clk 0:00:02]} 50. Kg1 {[%clk 0:00:02]}  Kc7 {[%clk 0:00:03]} 51. Kf1 {[%clk 0:00:02]}  Kd6 {[%clk 0:00:04]} 52. Be4 {[%clk 0:00:01]}  Ke5 {[%clk 0:00:05]} 53. Ke1 {[%clk 0:00:02]}  Rd4 {[%clk 0:00:04]} 54. Bf3 {[%clk 0:00:02]}  Rb4 {[%clk 0:00:04]} 55. Ke2 {[%clk 0:00:01]}  Kd4 {[%clk 0:00:05]} 56. Kd2 {[%clk 0:00:02]}  Rb5 {[%clk 0:00:04]} 57. Kc2 {[%clk 0:00:02]}  Rc5+ {[%clk 0:00:05]} 58. Kxb2 {[%clk 0:00:02]}  Rb5+ {[%clk 0:00:05]} 59. Kc2 {[%clk 0:00:02]}  Rc5+ {[%clk 0:00:06]} 60. Kd2 {[%clk 0:00:02]}  Ke5 {[%clk 0:00:07]} 61. Rd1 {[%clk 0:00:03]}  Kf4 {[%clk 0:00:08]} 62. Ke2 {[%clk 0:00:03]}  Kg3 {[%clk 0:00:08]} 63. Kf1 {[%clk 0:00:04]}  Rc2 {[%clk 0:00:09]} 64. Re1 {[%clk 0:00:04]}  Rf2+ {[%clk 0:00:09]} 65. Kg1 {[%clk 0:00:04]}  Rc2 {[%clk 0:00:10]} 66. Rf1 {[%clk 0:00:05]}  Rd2 {[%clk 0:00:10]} 67. Be4 {[%clk 0:00:05]}  Re2 {[%clk 0:00:10]} 68. Rf3# {[%clk 0:00:05]} 1-0


[Site "https://www.chess.com"]

[Event "Titled Tuesday Blitz February 07 Early 2023"]
[White "Belov, Alexei"]
[Black "Rakhmanov, Aleksandr"]
[WhiteFideId "4128206"]
[BlackFideId "4173708"]
[WhiteElo "2421"]
[BlackElo "2632"]
[Result "0-1"]
[Round "02"]
[TimeControl "180+2"]
[Date "2023.02.07"]
[WhiteClock "0:00:14"]
[BlackClock "0:00:13"]

1. e4 {[%clk 0:03:00]}  c5 {[%clk 0:02:59]} 2. Nf3 {[%clk 0:03:00]}  Nf6 {[%clk 0:02:59]} 3. e5 {[%clk 0:02:56]}  Nd5 {[%clk 0:02:59]} 4. Nc3 {[%clk 0:02:56]}  Nxc3 {[%clk 0:02:58]} 5. dxc3 {[%clk 0:02:57]}  Nc6 {[%clk 0:02:59]} 6. Bc4 {[%clk 0:02:54]}  e6 {[%clk 0:02:58]} 7. O-O {[%clk 0:02:52]}  Qc7 {[%clk 0:02:57]} 8. Re1 {[%clk 0:02:49]}  h6 {[%clk 0:02:56]} 9. Bf4 {[%clk 0:02:46]}  b6 {[%clk 0:02:55]} 10. Bg3 {[%clk 0:02:35]}  Bb7 {[%clk 0:02:55]} 11. Bd3 {[%clk 0:02:23]}  O-O-O {[%clk 0:02:53]} 12. a3 {[%clk 0:02:21]}  g5 {[%clk 0:02:44]} 13. Qe2 {[%clk 0:02:18]}  Be7 {[%clk 0:02:39]} 14. b4 {[%clk 0:02:15]}  h5 {[%clk 0:02:32]} 15. h3 {[%clk 0:02:08]}  Rdg8 {[%clk 0:02:26]} 16. b5 {[%clk 0:02:07]}  Na5 {[%clk 0:02:22]} 17. Be4 {[%clk 0:02:05]}  h4 {[%clk 0:02:19]} 18. Bh2 {[%clk 0:02:03]}  g4 {[%clk 0:02:19]} 19. hxg4 {[%clk 0:01:50]}  Rxg4 {[%clk 0:02:20]} 20. Nd2 {[%clk 0:01:47]}  Rhg8 {[%clk 0:02:12]} 21. f3 {[%clk 0:01:47]}  Rxg2+ {[%clk 0:01:47]} 22. Qxg2 {[%clk 0:01:47]}  Rxg2+ {[%clk 0:01:48]} 23. Kxg2 {[%clk 0:01:48]}  d5 {[%clk 0:01:41]} 24. exd6 {[%clk 0:01:40]}  Bxd6 {[%clk 0:01:40]} 25. Bxd6 {[%clk 0:01:38]}  Qxd6 {[%clk 0:01:38]} 26. Bxb7+ {[%clk 0:01:37]}  Nxb7 {[%clk 0:01:21]} 27. Ne4 {[%clk 0:01:38]}  Qf4 {[%clk 0:01:21]} 28. Rad1 {[%clk 0:00:46]}  f5 {[%clk 0:01:17]} 29. Nf2 {[%clk 0:00:46]}  Nd8 {[%clk 0:00:41]} 30. Nh1 {[%clk 0:00:30]}  h3+ {[%clk 0:00:29]} 31. Kxh3 {[%clk 0:00:28]}  Qxf3+ {[%clk 0:00:30]} 32. Kh2 {[%clk 0:00:29]}  Qxc3 {[%clk 0:00:20]} 33. Re2 {[%clk 0:00:25]}  e5 {[%clk 0:00:20]} 34. Red2 {[%clk 0:00:24]}  Ne6 {[%clk 0:00:19]} 35. Ng3 {[%clk 0:00:24]}  Nd4 {[%clk 0:00:17]} 36. Nxf5 {[%clk 0:00:22]}  Nf3+ {[%clk 0:00:14]} 37. Kg2 {[%clk 0:00:18]}  Nxd2 {[%clk 0:00:14]} 38. Nd6+ {[%clk 0:00:18]}  Kb8 {[%clk 0:00:14]} 39. Rf1 {[%clk 0:00:14]}  Nxf1 {[%clk 0:00:13]} 0-1


[Site "https://www.chess.com"]

[Event "Titled Tuesday Blitz February 07 Early 2023"]
[White "Kosakowski, Jakub"]
[Black "Golubev, Mikhail"]
[WhiteFideId "1185080"]
[BlackFideId "14100983"]
[WhiteElo "2485"]
[BlackElo "2461"]
[Result "0-1"]
[Round "02"]
[TimeControl "180+2"]
[Date "2023.02.07"]
[WhiteClock "0:00:02"]
[BlackClock "0:00:06"]

1. e4 {[%clk 0:03:00]}  c5 {[%clk 0:02:58]} 2. Nf3 {[%clk 0:03:00]}  d6 {[%clk 0:02:58]} 3. Bb5+ {[%clk 0:02:59]}  Bd7 {[%clk 0:02:58]} 4. c4 {[%clk 0:02:59]}  Nc6 {[%clk 0:02:54]} 5. d4 {[%clk 0:02:59]}  cxd4 {[%clk 0:02:54]} 6. Nxd4 {[%clk 0:02:59]}  Nf6 {[%clk 0:02:52]} 7. Nc3 {[%clk 0:02:58]}  g6 {[%clk 0:02:52]} 8. h3 {[%clk 0:02:54]}  Bg7 {[%clk 0:02:52]} 9. Be3 {[%clk 0:02:54]}  O-O {[%clk 0:02:46]} 10. O-O {[%clk 0:02:54]}  Rc8 {[%clk 0:02:36]} 11. Rc1 {[%clk 0:02:53]}  a6 {[%clk 0:02:31]} 12. Bxc6 {[%clk 0:02:52]}  Bxc6 {[%clk 0:02:23]} 13. Qd3 {[%clk 0:02:45]}  Nd7 {[%clk 0:02:12]} 14. Nxc6 {[%clk 0:02:41]}  bxc6 {[%clk 0:02:06]} 15. f4 {[%clk 0:02:36]}  Qa5 {[%clk 0:02:00]} 16. Rfd1 {[%clk 0:02:28]}  Nc5 {[%clk 0:01:55]} 17. Qc2 {[%clk 0:02:11]}  Bxc3 {[%clk 0:01:46]} 18. bxc3 {[%clk 0:02:01]}  f5 {[%clk 0:01:42]} 19. exf5 {[%clk 0:01:57]}  gxf5 {[%clk 0:01:36]} 20. Re1 {[%clk 0:01:56]}  Ne4 {[%clk 0:01:34]} 21. Bd4 {[%clk 0:01:50]}  c5 {[%clk 0:01:31]} 22. Bf2 {[%clk 0:01:44]}  Qc7 {[%clk 0:01:17]} 23. Rxe4 {[%clk 0:01:38]}  fxe4 {[%clk 0:01:17]} 24. Qxe4 {[%clk 0:01:39]}  Qd7 {[%clk 0:01:13]} 25. Re1 {[%clk 0:01:39]}  Rce8 {[%clk 0:01:12]} 26. Re3 {[%clk 0:01:09]}  Qf5 {[%clk 0:01:04]} 27. Qc6 {[%clk 0:01:00]}  Qxf4 {[%clk 0:00:53]} 28. Qd5+ {[%clk 0:00:42]}  e6 {[%clk 0:00:49]} 29. Qd2 {[%clk 0:00:42]}  Rb8 {[%clk 0:00:33]} 30. Bg3 {[%clk 0:00:25]}  Rb1+ {[%clk 0:00:31]} 31. Kh2 {[%clk 0:00:25]}  Qf1 {[%clk 0:00:28]} 32. Bxd6 {[%clk 0:00:25]}  Qh1+ {[%clk 0:00:18]} 33. Kg3 {[%clk 0:00:25]}  Rd1 {[%clk 0:00:15]} 34. Qe2 {[%clk 0:00:07]}  Rxd6 {[%clk 0:00:15]} 35. Re4 {[%clk 0:00:07]}  e5 {[%clk 0:00:10]} 36. Rg4+ {[%clk 0:00:07]}  Rg6 {[%clk 0:00:10]} 37. Rxg6+ {[%clk 0:00:07]}  hxg6 {[%clk 0:00:10]} 38. Qxe5 {[%clk 0:00:08]}  Qf1 {[%clk 0:00:09]} 39. Qe6+ {[%clk 0:00:05]}  Qf7 {[%clk 0:00:09]} 40. Qd6 {[%clk 0:00:06]}  Qf6 {[%clk 0:00:07]} 41. Qd5+ {[%clk 0:00:06]}  Kg7 {[%clk 0:00:07]} 42. Kh2 {[%clk 0:00:04]}  Qf4+ {[%clk 0:00:07]} 43. Kh1 {[%clk 0:00:05]}  Qf1+ {[%clk 0:00:07]} 44. Kh2 {[%clk 0:00:05]}  Qf4+ {[%clk 0:00:07]} 45. Kh1 {[%clk 0:00:06]}  Qf5 {[%clk 0:00:07]} 46. Qd6 {[%clk 0:00:05]}  Rf6 {[%clk 0:00:07]} 47. Qe7+ {[%clk 0:00:05]}  Kh6 {[%clk 0:00:07]} 48. Qe3+ {[%clk 0:00:04]}  Qf4 {[%clk 0:00:08]} 49. Qxc5 {[%clk 0:00:05]}  Qc1+ {[%clk 0:00:07]} 50. Kh2 {[%clk 0:00:06]}  Qf4+ {[%clk 0:00:06]} 51. Kh1 {[%clk 0:00:06]}  Qg5 {[%clk 0:00:06]} 52. Qd4 {[%clk 0:00:01]}  Rf1+ {[%clk 0:00:05]} 53. Kh2 {[%clk 0:00:02]}  Qf4+ {[%clk 0:00:06]} 0-1


[Site "https://www.chess.com"]

[Event "Titled Tuesday Blitz February 07 Early 2023"]
[White "Kukhmazov, Arsen"]
[Black "Kumala, Aleksander"]
[WhiteFideId "24108260"]
[BlackFideId "1141880"]
[WhiteElo "2512"]
[BlackElo "2165"]
[Result "1-0"]
[Round "02"]
[TimeControl "180+2"]
[Date "2023.02.07"]
[WhiteClock "0:00:14"]
[BlackClock "0:00:07"]

1. d4 {[%clk 0:02:54]}  Nf6 {[%clk 0:02:59]} 2. c4 {[%clk 0:02:55]}  Nc6 {[%clk 0:03:00]} 3. Nf3 {[%clk 0:02:46]}  e6 {[%clk 0:03:00]} 4. Nc3 {[%clk 0:02:42]}  Bb4 {[%clk 0:03:00]} 5. Bd2 {[%clk 0:02:43]}  O-O {[%clk 0:02:59]} 6. g3 {[%clk 0:02:42]}  d6 {[%clk 0:02:59]} 7. Bg2 {[%clk 0:02:42]}  Qe7 {[%clk 0:02:59]} 8. O-O {[%clk 0:02:43]}  e5 {[%clk 0:02:59]} 9. d5 {[%clk 0:02:42]}  Nb8 {[%clk 0:02:57]} 10. Qc2 {[%clk 0:02:41]}  a5 {[%clk 0:02:55]} 11. Bg5 {[%clk 0:02:40]}  Bxc3 {[%clk 0:02:51]} 12. Qxc3 {[%clk 0:02:41]}  Nbd7 {[%clk 0:02:50]} 13. b3 {[%clk 0:02:35]}  Nc5 {[%clk 0:02:47]} 14. Bc1 {[%clk 0:02:28]}  b5 {[%clk 0:02:28]} 15. cxb5 {[%clk 0:02:22]}  Nxd5 {[%clk 0:02:28]} 16. Qd2 {[%clk 0:02:20]}  Bb7 {[%clk 0:02:08]} 17. Ba3 {[%clk 0:02:20]}  Ne4 {[%clk 0:01:59]} 18. Qc2 {[%clk 0:01:49]}  f5 {[%clk 0:01:57]} 19. Rac1 {[%clk 0:01:47]}  Kh8 {[%clk 0:01:54]} 20. Nd2 {[%clk 0:01:47]}  Nec3 {[%clk 0:01:44]} 21. Nc4 {[%clk 0:01:35]}  f4 {[%clk 0:01:36]} 22. b6 {[%clk 0:01:31]}  fxg3 {[%clk 0:01:27]} 23. hxg3 {[%clk 0:01:30]}  c5 {[%clk 0:01:01]} 24. e4 {[%clk 0:01:30]}  Nf4 {[%clk 0:00:47]} 25. gxf4 {[%clk 0:01:27]}  Bxe4 {[%clk 0:00:30]} 26. Qxc3 {[%clk 0:01:24]}  Bxg2 {[%clk 0:00:24]} 27. Kxg2 {[%clk 0:01:25]}  Rxf4 {[%clk 0:00:23]} 28. Qg3 {[%clk 0:01:25]}  Raf8 {[%clk 0:00:21]} 29. Ne3 {[%clk 0:01:24]}  Qe6 {[%clk 0:00:19]} 30. b7 {[%clk 0:01:22]}  Rb8 {[%clk 0:00:18]} 31. Rh1 {[%clk 0:01:08]}  Rxb7 {[%clk 0:00:18]} 32. Rh4 {[%clk 0:01:08]}  Rbf7 {[%clk 0:00:18]} 33. Rc2 {[%clk 0:00:44]}  h6 {[%clk 0:00:17]} 34. Bc1 {[%clk 0:00:42]}  Qf6 {[%clk 0:00:16]} 35. Rh1 {[%clk 0:00:36]}  Rd4 {[%clk 0:00:10]} 36. Ng4 {[%clk 0:00:31]}  Qg6 {[%clk 0:00:09]} 37. Nxh6 {[%clk 0:00:27]}  Qxg3+ {[%clk 0:00:06]} 38. fxg3 {[%clk 0:00:23]}  gxh6 {[%clk 0:00:07]} 39. Rxh6+ {[%clk 0:00:23]}  Kg7 {[%clk 0:00:08]} 40. Rh4 {[%clk 0:00:22]}  Rd1 {[%clk 0:00:06]} 41. Be3 {[%clk 0:00:21]}  Rff1 {[%clk 0:00:06]} 42. Ra4 {[%clk 0:00:18]}  Rfe1 {[%clk 0:00:06]} 43. Bf2 {[%clk 0:00:19]}  Rh1 {[%clk 0:00:05]} 44. Rxa5 {[%clk 0:00:19]}  Kf6 {[%clk 0:00:05]} 45. Ra6 {[%clk 0:00:19]}  Kf5 {[%clk 0:00:06]} 46. a4 {[%clk 0:00:16]}  Rh7 {[%clk 0:00:04]} 47. a5 {[%clk 0:00:16]}  Rb1 {[%clk 0:00:05]} 48. Rb6 {[%clk 0:00:15]}  Ra7 {[%clk 0:00:05]} 49. a6 {[%clk 0:00:16]}  Ra1 {[%clk 0:00:04]} 50. Rxd6 {[%clk 0:00:16]}  R7xa6 {[%clk 0:00:05]} 51. Rxa6 {[%clk 0:00:17]}  Rxa6 {[%clk 0:00:05]} 52. Rxc5 {[%clk 0:00:18]}  Ra3 {[%clk 0:00:06]} 53. b4 {[%clk 0:00:18]}  Kg4 {[%clk 0:00:05]} 54. Rc4+ {[%clk 0:00:16]}  Kf5 {[%clk 0:00:05]} 55. g4+ {[%clk 0:00:15]}  Kg5 {[%clk 0:00:05]} 56. b5 {[%clk 0:00:15]}  Rb3 {[%clk 0:00:06]} 57. b6 {[%clk 0:00:16]}  Kg6 {[%clk 0:00:04]} 58. Re4 {[%clk 0:00:16]}  Kf6 {[%clk 0:00:04]} 59. Be3 {[%clk 0:00:15]}  Ke6 {[%clk 0:00:04]} 60. Kf3 {[%clk 0:00:15]}  Kd5 {[%clk 0:00:05]} 61. g5 {[%clk 0:00:16]}  Rb1 {[%clk 0:00:05]} 62. Rg4 {[%clk 0:00:16]}  Rf1+ {[%clk 0:00:05]} 63. Ke2 {[%clk 0:00:16]}  Rb1 {[%clk 0:00:05]} 64. g6 {[%clk 0:00:17]}  e4 {[%clk 0:00:06]} 65. Rg5+ {[%clk 0:00:17]}  Kc4 {[%clk 0:00:05]} 66. Rc5+ {[%clk 0:00:16]}  Kb4 {[%clk 0:00:06]} 67. Rc2 {[%clk 0:00:15]}  Kb3 {[%clk 0:00:06]} 68. Rc8 {[%clk 0:00:14]}  Rh1 {[%clk 0:00:06]} 69. b7 {[%clk 0:00:14]}  Ka2 {[%clk 0:00:06]} 70. Ra8+ {[%clk 0:00:13]}  Kb1 {[%clk 0:00:05]} 71. b8=Q+ {[%clk 0:00:14]}  Kc2 {[%clk 0:00:06]} 72. Qc7+ {[%clk 0:00:13]}  Kb2 {[%clk 0:00:06]} 73. Rb8+ {[%clk 0:00:13]}  Ka2 {[%clk 0:00:07]} 74. Qa7# {[%clk 0:00:14]} 1-0


[Site "https://www.chess.com"]

[Event "Titled Tuesday Blitz February 07 Early 2023"]
[White "Ilkhomi, Jaloliddin"]
[Black "Kilic, Eray"]
[WhiteFideId "14700948"]
[BlackFideId "44517173"]
[WhiteElo "1997"]
[BlackElo "2414"]
[Result "0-1"]
[Round "02"]
[TimeControl "180+2"]
[Date "2023.02.07"]
[WhiteClock "0:00:02"]
[BlackClock "0:00:37"]

1. d4 {[%clk 0:03:00]}  Nf6 {[%clk 0:02:59]} 2. Nf3 {[%clk 0:02:58]}  g6 {[%clk 0:03:00]} 3. b3 {[%clk 0:02:57]}  Bg7 {[%clk 0:03:00]} 4. Bb2 {[%clk 0:02:58]}  O-O {[%clk 0:03:00]} 5. g3 {[%clk 0:02:58]}  d5 {[%clk 0:02:59]} 6. Bg2 {[%clk 0:02:59]}  c5 {[%clk 0:02:58]} 7. e3 {[%clk 0:02:58]}  cxd4 {[%clk 0:02:57]} 8. Nxd4 {[%clk 0:02:57]}  Nc6 {[%clk 0:02:55]} 9. O-O {[%clk 0:02:57]}  Re8 {[%clk 0:02:55]} 10. Nxc6 {[%clk 0:02:55]}  bxc6 {[%clk 0:02:56]} 11. c4 {[%clk 0:02:56]}  e5 {[%clk 0:02:54]} 12. cxd5 {[%clk 0:02:32]}  cxd5 {[%clk 0:02:55]} 13. Nc3 {[%clk 0:02:32]}  Be6 {[%clk 0:02:50]} 14. Qd2 {[%clk 0:02:23]}  Rc8 {[%clk 0:02:44]} 15. Rfd1 {[%clk 0:02:23]}  Bg4 {[%clk 0:02:42]} 16. Nxd5 {[%clk 0:01:56]}  Bxd1 {[%clk 0:02:37]} 17. Rxd1 {[%clk 0:01:57]}  Nxd5 {[%clk 0:02:33]} 18. Bxd5 {[%clk 0:01:57]}  e4 {[%clk 0:02:27]} 19. Qe2 {[%clk 0:01:29]}  Qe7 {[%clk 0:02:23]} 20. Bxg7 {[%clk 0:01:04]}  Kxg7 {[%clk 0:02:24]} 21. Rd4 {[%clk 0:01:04]}  Qe5 {[%clk 0:01:12]} 22. Bxe4 {[%clk 0:00:44]}  Rcd8 {[%clk 0:01:12]} 23. Rxd8 {[%clk 0:00:40]}  Rxd8 {[%clk 0:01:13]} 24. Bf3 {[%clk 0:00:38]}  Qc3 {[%clk 0:01:10]} 25. Qa6 {[%clk 0:00:33]}  Qe1+ {[%clk 0:01:09]} 26. Kg2 {[%clk 0:00:33]}  Rd2 {[%clk 0:01:09]} 27. Qf1 {[%clk 0:00:30]}  Qxe3 {[%clk 0:01:05]} 28. a4 {[%clk 0:00:17]}  a5 {[%clk 0:00:58]} 29. Bd5 {[%clk 0:00:12]}  Qd4 {[%clk 0:00:53]} 30. Bc4 {[%clk 0:00:11]}  Qe4+ {[%clk 0:00:53]} 31. Kg1 {[%clk 0:00:12]}  Qf3 {[%clk 0:00:52]} 32. Qg2 {[%clk 0:00:13]}  Rd1+ {[%clk 0:00:50]} 33. Bf1 {[%clk 0:00:13]}  Qxb3 {[%clk 0:00:45]} 34. h4 {[%clk 0:00:12]}  Qxa4 {[%clk 0:00:44]} 35. Kh2 {[%clk 0:00:13]}  Qd4 {[%clk 0:00:43]} 36. Be2 {[%clk 0:00:12]}  Rd2 {[%clk 0:00:43]} 37. Qf3 {[%clk 0:00:13]}  Qf6 {[%clk 0:00:43]} 38. Qe3 {[%clk 0:00:13]}  Rd6 {[%clk 0:00:43]} 39. Bf3 {[%clk 0:00:13]}  Re6 {[%clk 0:00:43]} 40. Qa3 {[%clk 0:00:13]}  h5 {[%clk 0:00:39]} 41. Kg2 {[%clk 0:00:12]}  Re5 {[%clk 0:00:40]} 42. Qc3 {[%clk 0:00:12]}  Rf5 {[%clk 0:00:40]} 43. Qa3 {[%clk 0:00:07]}  a4 {[%clk 0:00:39]} 44. Be4 {[%clk 0:00:05]}  Rxf2+ {[%clk 0:00:39]} 45. Kg1 {[%clk 0:00:05]}  Qd4 {[%clk 0:00:37]} 46. Kh1 {[%clk 0:00:03]}  Qxe4+ {[%clk 0:00:36]} 47. Kg1 {[%clk 0:00:02]}  Qg2# {[%clk 0:00:37]} 0-1


[Site "https://www.chess.com"]